fUST/lending_fUST_20250522
["ID","MTS","AMOUNT","RATE_DAILY","PERIOD"]
[361888480,1747870247703,-474.61124955,0.00023561,2]
[361888481,1747870247713,-430.0,0.00023561,2]
[361888482,1747870247722,-513.46,0.00023561,2]
[361888483,1747870247732,-198.13070072,0.00023561,2]
[361888484,1747870247741,-430.0,0.00023561,2]
[361888485,1747870247752,-994.72,0.00023561,2]
[361888486,1747870247761,-430.0,0.00023561,2]
[361888487,1747870247770,-430.0,0.00023561,2]
[361888488,1747870247780,-430.0,0.00023561,2]
[361888489,1747870247790,-430.0,0.00023561,2]
[361888490,1747870247799,-700.29,0.00023561,2]
[361888491,1747870247809,-1499.3,0.00023561,2]
[361888492,1747870247818,-430.0,0.00023561,2]
[361888493,1747870247828,-469.18,0.00023561,2]
[361888494,1747870247838,-430.0,0.00023561,2]
[361888495,1747870247848,-1343.93,0.00023561,2]
[361888496,1747870247858,-430.0,0.00023561,2]
[361888497,1747870247871,-430.0,0.00023561,2]
[361888498,1747870247881,-430.0,0.00023561,2]
[361888499,1747870247890,-430.0,0.00023561,2]
[361888500,1747870247901,-152.282009,0.00023621,8]
[361888501,1747870247910,-160.08764,0.00023621,8]
[361888502,1747870247920,-1134.56750893,0.00023624,9]
[361888503,1747870247930,-1134.56750893,0.00023728,9]
[361888504,1747870247939,-558.14155064,0.00023739,2]
[361888505,1747870247949,-836.27148761,0.00023757,2]
[361888506,1747870247959,-1185.50935466,0.00023759,2]
[361888507,1747870247969,-1134.56750893,0.00023831,10]
[361888508,1747870247979,-500.0,0.00023833,2]
[361888509,1747870247988,-500.0,0.00023834,2]
[361888510,1747870247998,-471.5,0.00023834,2]
[361888511,1747870248007,-603.85,0.00023834,2]
[361888512,1747870248018,-743.3,0.00023834,2]
[361888513,1747870248028,-1252.1,0.00023834,2]
[361888514,1747870248039,-430.0,0.00023834,2]
[361888515,1747870248051,-151.0,0.00023835,7]
[361888516,1747870248061,-151.0,0.00023835,7]
[361888517,1747870248072,-233.333415,0.00023835,7]
[361888518,1747870248081,-233.333415,0.00023835,7]
[361888519,1747870248091,-499.34153625,0.00023835,2]
[361888520,1747870248101,-247.74765074,0.00023835,120]
[361888521,1747870248111,-430.0,0.00023835,2]
[361888522,1747870248125,-430.0,0.00023835,2]
[361888523,1747870248135,-778.53,0.00023835,2]
[361888524,1747870248145,-1064.46,0.00023835,2]
[361888525,1747870248155,-1591.44,0.00023835,2]
[361888526,1747870248165,-873.78,0.00023835,2]
[361888527,1747870248175,-430.0,0.00023835,2]
[361888528,1747870248185,-513.46,0.00023835,2]
[361888529,1747870248194,-430.0,0.00023835,2]
[361888530,1747870248204,-994.72,0.00023835,2]
[361888531,1747870248213,-430.0,0.00023835,2]
[361888532,1747870248224,-430.0,0.00023835,2]
[361888533,1747870248234,-430.0,0.00023835,2]
[361888534,1747870248245,-430.0,0.00023835,2]
[361888535,1747870248256,-700.29,0.00023835,2]
[361888536,1747870248267,-1499.3,0.00023835,2]
[361888537,1747870248277,-430.0,0.00023835,2]
[361888538,1747870248287,-469.18,0.00023835,2]
[361888539,1747870248298,-430.0,0.00023835,2]
[361888540,1747870248308,-1343.93,0.00023835,2]
[361888541,1747870248319,-344.33716036,0.00023835,2]
[361888542,1747870248329,-456.53145017,0.00023835,2]
[361888543,1747870248339,-430.0,0.00023835,2]
[361888544,1747870248350,-430.0,0.00023835,2]
[361888545,1747870248360,-705.9,0.00023847,4]
[361888546,1747870248375,-151.0,0.00023881,7]
[361888547,1747870248385,-500.0,0.00023881,2]
[361888548,1747870248395,-215.35263189,0.000239,2]
[361888549,1747870248405,-1134.56750893,0.00023934,10]
[361888550,1747870248415,-705.9,0.00023947,3]
[361888551,1747870248426,-159.919409,0.00023973,2]
[361888552,1747870248436,-98522.24865812,0.00024,3]
[361888553,1747870248446,-113527.20913954,0.00024,21]
[361888554,1747870248456,-156.05785817,0.00024006,2]
[361888555,1747870248466,-151.0,0.00024023,2]
[361888556,1747870248476,-151.0,0.00024023,2]
[361888557,1747870248486,-207.4,0.00024023,2]
[361888558,1747870248496,-1134.56750893,0.00024038,10]
[361888559,1747870248505,-705.9,0.00024047,3]
[361888560,1747870248516,-363.5769684,0.00024055,2]
[361888561,1747870248525,-363.5769684,0.00024055,2]
[361888562,1747870248535,-363.5769684,0.00024055,2]
[361888563,1747870248545,-363.5769684,0.00024055,2]
[361888564,1747870248555,-361.8466203,0.00024055,2]
[361888565,1747870248564,-471.5,0.00024108,2]
[361888566,1747870248574,-603.85,0.00024108,2]
[361888567,1747870248584,-743.3,0.00024108,2]
[361888568,1747870248593,-1252.1,0.00024108,2]
[361888569,1747870248603,-430.0,0.00024108,2]
[361888570,1747870248613,-500.0,0.00024108,2]
[361888571,1747870248628,-32308.71132139,0.00024109,2]
[361888572,1747870248638,-151.631799,0.00024109,7]
[361888573,1747870248648,-273.56211724,0.00024109,2]
[361888574,1747870248658,-430.0,0.00024109,2]
[361888575,1747870248667,-778.53,0.00024109,2]
[361888576,1747870248678,-1064.46,0.00024109,2]
[361888577,1747870248688,-1591.44,0.00024109,2]
[361888578,1747870248697,-873.78,0.00024109,2]
[361888579,1747870248708,-430.0,0.00024109,2]
[361888580,1747870248717,-513.46,0.00024109,2]
[361888581,1747870248727,-430.0,0.00024109,2]
[361888582,1747870248737,-994.72,0.00024109,2]
[361888583,1747870248747,-430.0,0.00024109,2]
[361888584,1747870248757,-430.0,0.00024109,2]
[361888585,1747870248767,-430.0,0.00024109,2]
[361888586,1747870248776,-430.0,0.00024109,2]
[361888587,1747870248786,-700.29,0.00024109,2]
[361888588,1747870248796,-1499.3,0.00024109,2]
[361888589,1747870248805,-430.0,0.00024109,2]
[361888590,1747870248815,-469.18,0.00024109,2]
[361888591,1747870248824,-430.0,0.00024109,2]
[361888592,1747870248834,-1343.93,0.00024109,2]
[361888593,1747870248844,-430.0,0.00024109,2]
[361888594,1747870248853,-204.64,0.00024109,2]
[361888595,1747870248864,-160.08764,0.00024123,9]
[361888596,1747870248877,-1134.56750893,0.00024141,10]
[361888597,1747870248887,-705.9,0.00024147,4]
[361888598,1747870248898,-836.27148761,0.00024178,2]
[361888599,1747870248908,-1134.56750893,0.00024245,10]
[361888600,1747870248918,-151.0,0.00024246,7]
[361888601,1747870248928,-500.0,0.00024246,2]
[361888602,1747870248938,-705.9,0.00024247,7]
[361888603,1747870248947,-2130.16266842,0.00024283,2]
[361888604,1747870248957,-209.7788329,0.00024329,2]
[361888605,1747870248966,-176.0309214,0.00024329,2]
[361888606,1747870248976,-569.9163794,0.00024329,2]
[361888607,1747870248986,-158.1465944,0.00024329,2]
[361888608,1747870248995,-306.0,0.00024329,2]
[361888609,1747870249005,-158.1465944,0.00024329,2]
[361888610,1747870249014,-569.9163794,0.00024329,2]
[361888611,1747870249024,-176.0309214,0.00024329,2]
[361888612,1747870249034,-176.0309214,0.00024329,2]
[361888613,1747870249044,-569.9163794,0.00024329,2]
[361888614,1747870249058,-158.1465944,0.00024329,2]
[361888615,1747870249067,-151.0,0.00024346,7]
[361888616,1747870249076,-705.9,0.00024347,3]
[361888617,1747870249086,-1134.56750893,0.00024348,11]
[361888618,1747870249096,-500.0,0.00024382,2]
[361888619,1747870249106,-471.5,0.00024382,2]
[361888620,1747870249118,-603.85,0.00024382,2]
[361888621,1747870249129,-743.3,0.00024382,2]
[361888622,1747870249139,-1252.1,0.00024382,2]
[361888623,1747870249149,-430.0,0.00024382,2]
[361888624,1747870249160,-500.0,0.00024382,2]
[361888625,1747870249170,-151.0,0.00024383,7]
[361888626,1747870249180,-151.0,0.00024383,7]
[361888627,1747870249190,-430.0,0.00024383,2]
[361888628,1747870249199,-778.53,0.00024383,2]
[361888629,1747870249209,-1064.46,0.00024383,2]
[361888630,1747870249219,-1591.44,0.00024383,2]
[361888631,1747870249230,-873.78,0.00024383,2]
[361888632,1747870249358,-430.0,0.00024383,2]
[361888633,1747870249372,-513.46,0.00024383,2]
[361888634,1747870249383,-430.0,0.00024383,2]
[361888635,1747870249393,-994.72,0.00024383,2]
[361888636,1747870249403,-430.0,0.00024383,2]
[361888637,1747870249412,-474.70001726,0.00024383,2]
[361888638,1747870249422,-430.0,0.00024383,2]
[361888639,1747870249432,-430.0,0.00024383,2]
[361888640,1747870249442,-700.29,0.00024383,2]
[361888641,1747870249451,-1499.3,0.00024383,2]
[361888642,1747870249461,-430.0,0.00024383,2]
[361888643,1747870249470,-469.18,0.00024383,2]
[361888644,1747870249479,-430.0,0.00024383,2]
[361888645,1747870249489,-1343.93,0.00024383,2]
[361888646,1747870249499,-430.0,0.00024383,2]
[361888647,1747870249508,-2000.0,0.000244,10]
[361888648,1747870249518,-705.9,0.00024447,3]
[361888649,1747870249527,-1134.56750893,0.00024452,11]
[361888650,1747870249537,-45949.6641336,0.00024453,2]
[361888651,1747870249546,-1005.949712,0.000245,2]
[361888652,1747870249556,-151.0,0.000245,8]
[361888653,1747870249566,-705.9,0.00024547,3]
[361888654,1747870249575,-154.22928253,0.00024548,2]
[361888655,1747870249585,-151.0,0.00024555,7]
[361888656,1747870249595,-151.0,0.00024555,7]
[361888657,1747870249605,-151.0,0.00024555,7]
[361888658,1747870249615,-151.0,0.00024555,7]
[361888659,1747870249627,-1134.56750893,0.00024555,11]
[361888660,1747870249636,-151.0,0.000246,10]
[361888661,1747870249646,-836.27148761,0.000246,2]
[361888662,1747870249655,-534.91,0.0002462,2]
[361888663,1747870249665,-218.0,0.00024621,120]
[361888664,1747870249674,-5353.0,0.00024621,120]
[361888665,1747870249684,-150.5,0.00024631,120]
[361888666,1747870249694,-5353.0,0.00024631,120]
[361888667,1747870249703,-150.5,0.00024641,120]
[361888668,1747870249713,-253.5,0.00024641,120]
[361888669,1747870249723,-167.01,0.00024641,120]
[361888670,1747870249733,-5353.0,0.00024641,120]
[361888671,1747870249742,-705.9,0.00024647,2]
[361888672,1747870249752,-160.0,0.0002465,3]
[361888673,1747870249762,-151.0,0.0002465,7]
[361888674,1747870249771,-151.0,0.0002465,7]
[361888675,1747870249780,-151.0,0.0002465,7]
[361888676,1747870249790,-151.0,0.0002465,7]
[361888677,1747870249800,-151.0,0.0002465,7]
[361888678,1747870249809,-151.0,0.0002465,7]
[361888679,1747870249819,-151.0,0.0002465,7]
[361888680,1747870249829,-151.0,0.0002465,7]
[361888681,1747870249839,-151.0,0.0002465,7]
[361888682,1747870249848,-212.41679935,0.00024651,3]
[361888683,1747870249858,-146918.31012284,0.00024651,2]
[361888684,1747870249868,-219.137551,0.00024651,7]
[361888685,1747870249877,-151.0,0.00024651,7]
[361888686,1747870249887,-151.0,0.00024651,7]
[361888687,1747870249897,-391.224162,0.00024651,7]
[361888688,1747870249907,-151.0,0.00024651,7]
[361888689,1747870249917,-344.754094,0.00024651,7]
[361888690,1747870249926,-344.754094,0.00024651,7]
[361888691,1747870249936,-151.0,0.00024651,7]
[361888692,1747870249945,-151.0,0.00024651,7]
[361888693,1747870249955,-243.355082,0.00024651,7]
[361888694,1747870249967,-243.355082,0.00024651,7]
[361888695,1747870249976,-319.797031,0.00024651,7]
[361888696,1747870249986,-151.0,0.00024651,7]
[361888697,1747870249996,-319.797031,0.00024651,7]
[361888698,1747870250005,-151.0,0.00024651,7]
[361888699,1747870250015,-151.0,0.00024651,7]
[361888700,1747870250024,-151.313252,0.00024651,7]
[361888701,1747870250035,-151.0,0.00024651,7]
[361888702,1747870250045,-151.0,0.00024651,7]
[361888703,1747870250059,-151.0,0.00024651,7]
[361888704,1747870250068,-686.36074,0.00024651,7]
[361888705,1747870250078,-1099.293196,0.00024651,2]
[361888706,1747870250089,-686.36074,0.00024651,7]
[361888707,1747870250099,-1099.293196,0.00024651,2]
[361888708,1747870250109,-153.0554,0.00024651,7]
[361888709,1747870250120,-153.0554,0.00024651,7]
[361888710,1747870250130,-151.0,0.00024651,7]
[361888711,1747870250140,-151.0,0.00024651,7]
[361888712,1747870250150,-151.0,0.00024651,7]
[361888713,1747870250160,-151.0,0.00024651,7]
[361888714,1747870250171,-151.0,0.00024651,7]
[361888715,1747870250181,-824.074083,0.00024651,7]
[361888716,1747870250190,-824.074083,0.00024651,7]
[361888717,1747870250200,-151.0,0.00024651,7]
[361888718,1747870250209,-1567.756669,0.00024651,7]
[361888719,1747870250219,-1567.756669,0.00024651,7]
[361888720,1747870250229,-151.0,0.00024651,7]
[361888721,1747870250239,-151.0,0.00024651,7]
[361888722,1747870250249,-151.0,0.00024651,7]
[361888723,1747870250259,-151.0,0.00024651,7]
[361888724,1747870250269,-151.0,0.00024651,7]
[361888725,1747870250279,-151.0,0.00024651,7]
[361888726,1747870250288,-151.0,0.00024651,7]
[361888727,1747870250298,-599.119145,0.00024651,7]
[361888728,1747870250307,-151.0,0.00024651,7]
[361888729,1747870250317,-599.119145,0.00024651,7]
[361888730,1747870250326,-151.0,0.00024651,7]
[361888731,1747870250336,-151.0,0.00024651,7]
[361888732,1747870250345,-599.119145,0.00024651,7]
[361888733,1747870250355,-599.119145,0.00024651,7]
[361888734,1747870250365,-151.0,0.00024651,7]
[361888735,1747870250381,-151.0,0.00024651,7]
[361888736,1747870250390,-151.0,0.00024651,7]
[361888737,1747870250400,-471.5,0.00024656,2]
[361888738,1747870250410,-603.85,0.00024656,2]
[361888739,1747870250419,-743.3,0.00024656,2]
[361888740,1747870250429,-1252.1,0.00024656,2]
[361888741,1747870250439,-430.0,0.00024656,2]
[361888742,1747870250448,-430.0,0.00024657,2]
[361888743,1747870250458,-778.53,0.00024657,2]
[361888744,1747870250468,-1064.46,0.00024657,2]
[361888745,1747870250478,-1591.44,0.00024657,2]
[361888746,1747870250487,-200.0,0.00024657,2]
[361888747,1747870250497,-873.78,0.00024657,2]
[361888748,1747870250506,-430.0,0.00024657,2]
[361888749,1747870250516,-513.46,0.00024657,2]
[361888750,1747870250525,-430.0,0.00024657,2]
[361888751,1747870250535,-994.72,0.00024657,2]
[361888752,1747870250545,-430.0,0.00024657,2]
[361888753,1747870250554,-430.0,0.00024657,2]
[361888754,1747870250563,-430.0,0.00024657,2]
[361888755,1747870250573,-700.29,0.00024657,2]
[361888756,1747870250583,-1499.3,0.00024657,2]
[361888757,1747870250593,-430.0,0.00024657,2]
[361888758,1747870250602,-469.18,0.00024657,2]
[361888759,1747870250612,-430.0,0.00024657,2]
[361888760,1747870250627,-430.0,0.00024657,2]
[361888761,1747870250637,-344.80725714,0.00024657,2]
[361888762,1747870250646,-1343.93,0.00024657,2]
[361888763,1747870250656,-430.0,0.00024657,2]
[361888764,1747870250666,-151.0,0.00024658,7]
[361888765,1747870250675,-298.5622277,0.00024658,2]
[361888766,1747870250685,-500.0,0.00024658,2]
[361888767,1747870250694,-500.0,0.00024658,2]
[361888768,1747870250704,-500.0,0.00024658,2]
[361888769,1747870250713,-500.0,0.00024658,2]
[361888770,1747870250722,-451.25576596,0.00024658,2]
[361888771,1747870250732,-500.0,0.00024658,2]
[361888772,1747870250741,-500.0,0.00024658,2]
[361888773,1747870250751,-500.0,0.00024658,2]
[361888774,1747870250760,-500.0,0.00024658,2]
[361888775,1747870250770,-500.0,0.00024658,2]
[361888776,1747870250780,-500.0,0.00024658,2]
[361888777,1747870250790,-500.0,0.00024658,2]
[361888778,1747870250800,-500.0,0.00024658,2]
[361888779,1747870250810,-500.0,0.00024658,2]
[361888780,1747870250820,-500.0,0.00024658,2]
[361888781,1747870250829,-500.0,0.00024658,2]
[361888782,1747870250839,-350.0,0.00024658,2]
[361888783,1747870250849,-500.0,0.00024658,2]
[361888784,1747870250858,-210.41973997,0.00024658,2]
[361888785,1747870250867,-1134.56750893,0.00024659,11]
[361888786,1747870250882,-16986.98903656,0.0002466,7]
[361888787,1747870250891,-16986.98903656,0.0002466,7]
[361888788,1747870250901,-160.0,0.0002466,7]
[361888789,1747870250910,-202.10439689,0.00024673,2]
[361888790,1747870250919,-500.0,0.00024673,2]
[361888791,1747870250928,-500.4301519,0.00024673,2]
[361888792,1747870250937,-600.0,0.00024673,2]
[361888793,1747870250946,-500.0,0.00024673,2]
[361888794,1747870250955,-150.0,0.00024673,2]
[361888795,1747870250965,-500.0,0.00024673,2]
[361888796,1747870250975,-3961.00329781,0.0002469,2]
[361888797,1747870250985,-151.0,0.000247,7]
[361888798,1747870250994,-151.0,0.000247,7]
[361888799,1747870251003,-296.608828,0.000247,7]
[361888800,1747870251012,-233.333415,0.000247,7]
[361888801,1747870251022,-233.333415,0.000247,7]
[361888802,1747870251031,-10074.82,0.000247,7]
[361888803,1747870251042,-555961.35,0.000247,7]
[361888804,1747870251054,-151.0,0.000247,7]
[361888805,1747870251065,-10580.48,0.000247,7]
[361888806,1747870251075,-21202.38,0.000247,2]
[361888807,1747870251087,-234.210676,0.000247,7]
[361888808,1747870251097,-151.0,0.000247,7]
[361888809,1747870251107,-151.0,0.000247,7]
[361888810,1747870251121,-319.797031,0.000247,7]
[361888811,1747870251139,-154.683887,0.000247,7]
[361888812,1747870251150,-319.797031,0.000247,7]
[361888813,1747870251161,-151.0,0.000247,7]
[361888814,1747870251172,-151.0,0.000247,7]
[361888815,1747870251183,-151.0,0.000247,7]
[361888816,1747870251193,-151.0,0.000247,7]
[361888817,1747870251203,-686.36074,0.000247,7]
[361888818,1747870251215,-1099.293196,0.000247,2]
[361888819,1747870251226,-686.36074,0.000247,7]
[361888820,1747870251237,-1099.293196,0.000247,2]
[361888821,1747870251247,-153.0554,0.000247,7]
[361888822,1747870251257,-153.0554,0.000247,7]
[361888823,1747870251268,-151.0,0.000247,7]
[361888824,1747870251279,-151.0,0.000247,7]
[361888825,1747870251290,-151.0,0.000247,7]
[361888826,1747870251300,-151.0,0.000247,7]
[361888827,1747870251310,-824.074083,0.000247,7]
[361888828,1747870251321,-824.074083,0.000247,7]
[361888829,1747870251331,-151.0,0.000247,7]
[361888830,1747870251341,-1567.756669,0.000247,7]
[361888831,1747870251352,-1567.756669,0.000247,7]
[361888832,1747870251362,-151.0,0.000247,7]
[361888833,1747870251377,-151.0,0.000247,7]
[361888834,1747870251387,-151.0,0.000247,7]
[361888835,1747870251399,-151.0,0.000247,7]
[361888836,1747870251409,-151.0,0.000247,7]
[361888837,1747870251420,-151.0,0.000247,7]
[361888838,1747870251431,-151.0,0.000247,7]
[361888839,1747870251442,-151.0,0.000247,7]
[361888840,1747870251452,-151.0,0.000247,7]
[361888841,1747870251463,-599.119145,0.000247,7]
[361888842,1747870251474,-151.0,0.000247,7]
[361888843,1747870251484,-599.119145,0.000247,7]
[361888844,1747870251494,-151.0,0.000247,7]
[361888845,1747870251504,-151.0,0.000247,7]
[361888846,1747870251514,-151.0,0.000247,7]
[361888847,1747870251524,-705.9,0.00024747,4]
[361888848,1747870251535,-7154.64593261,0.00024747,2]
[361888849,1747870251545,-1134.56750893,0.00024762,11]
[361888850,1747870251556,-500.0,0.00024773,2]
[361888851,1747870251566,-500.58494073,0.00024773,2]
[361888852,1747870251577,-12851.23284405,0.00024774,2]
[361888853,1747870251588,-151.0,0.000248,6]
[361888854,1747870251599,-151.0,0.000248,7]
[361888855,1747870251610,-151.0,0.000248,7]
[361888856,1747870251626,-391.224162,0.000248,7]
[361888857,1747870251637,-151.0,0.000248,7]
[361888858,1747870251648,-344.754094,0.000248,7]
[361888859,1747870251658,-344.754094,0.000248,7]
[361888860,1747870251668,-151.0,0.000248,7]
[361888861,1747870251677,-243.355082,0.000248,7]
[361888862,1747870251687,-243.355082,0.000248,7]
[361888863,1747870251698,-319.797031,0.000248,7]
[361888864,1747870251707,-319.797031,0.000248,7]
[361888865,1747870251717,-151.0,0.000248,7]
[361888866,1747870251727,-151.0,0.000248,7]
[361888867,1747870251737,-151.0,0.000248,7]
[361888868,1747870251747,-686.36074,0.000248,7]
[361888869,1747870251757,-1099.293196,0.000248,2]
[361888870,1747870251767,-686.36074,0.000248,7]
[361888871,1747870251777,-1099.293196,0.000248,2]
[361888872,1747870251787,-153.0554,0.000248,7]
[361888873,1747870251797,-153.0554,0.000248,7]
[361888874,1747870251807,-318000.080574,0.000248,2]
[361888875,1747870251817,-151.0,0.000248,7]
[361888876,1747870251827,-151.0,0.000248,7]
[361888877,1747870251837,-705.9,0.00024847,4]
[361888878,1747870251847,-1134.56750893,0.00024866,12]
[361888879,1747870251857,-236.632824,0.00024869,7]
[361888880,1747870251867,-151.0,0.00024869,7]
[361888881,1747870251882,-151.0,0.00024869,7]
[361888882,1747870251892,-5353.0,0.00024869,120]
[361888883,1747870251902,-7154.64593257,0.00024875,2]
[361888884,1747870251912,-154.22928253,0.00024877,2]
[361888885,1747870252030,-5353.0,0.00024879,120]
[361888886,1747870252042,-151.0,0.00024889,7]
[361888887,1747870252055,-151.0,0.00024889,7]
[361888888,1747870252065,-151.0,0.00024889,7]
[361888889,1747870252075,-151.0,0.00024889,7]
[361888890,1747870252086,-5353.0,0.00024889,120]
[361888891,1747870252097,-151.0,0.00024899,7]
[361888892,1747870252107,-151.0,0.00024899,7]
[361888893,1747870252117,-765.505088,0.00024899,7]
[361888894,1747870252132,-242.271713,0.00024899,7]
[361888895,1747870252142,-765.505088,0.00024899,7]
[361888896,1747870252152,-242.271713,0.00024899,7]
[361888897,1747870252162,-151.0,0.00024899,2]
[361888898,1747870252171,-151.0,0.00024899,7]
[361888899,1747870252180,-180.210454,0.00024899,7]
[361888900,1747870252191,-151.0,0.00024899,7]
[361888901,1747870252201,-824.074083,0.00024899,7]
[361888902,1747870252211,-824.074083,0.00024899,7]
[361888903,1747870252221,-1567.756669,0.00024899,7]
[361888904,1747870252231,-1567.756669,0.00024899,7]
[361888905,1747870252241,-151.0,0.00024899,7]
[361888906,1747870252250,-151.0,0.00024899,7]
[361888907,1747870252260,-151.0,0.00024899,7]
[361888908,1747870252269,-151.0,0.00024899,7]
[361888909,1747870252279,-599.119145,0.00024899,7]
[361888910,1747870252288,-151.0,0.00024899,7]
[361888911,1747870252298,-599.119145,0.00024899,7]
[361888912,1747870252308,-3337.50417267,0.000249,30]
[361888913,1747870252318,-151.0,0.000249,7]
[361888914,1747870252327,-151.0,0.000249,7]
[361888915,1747870252337,-151.0,0.000249,7]
[361888916,1747870252347,-151.0,0.000249,7]
[361888917,1747870252357,-151.0,0.000249,7]
[361888918,1747870252366,-151.0,0.000249,7]
[361888919,1747870252380,-233.333415,0.000249,7]
[361888920,1747870252390,-233.333415,0.000249,7]
[361888921,1747870252400,-151.0,0.000249,7]
[361888922,1747870252410,-151.0,0.000249,7]
[361888923,1747870252420,-151.0,0.000249,7]
[361888924,1747870252429,-344.754094,0.000249,7]
[361888925,1747870252438,-344.754094,0.000249,7]
[361888926,1747870252448,-151.0,0.000249,7]
[361888927,1747870252458,-243.355082,0.000249,7]
[361888928,1747870252467,-243.355082,0.000249,7]
[361888929,1747870252477,-319.797031,0.000249,7]
[361888930,1747870252487,-319.797031,0.000249,7]
[361888931,1747870252496,-151.0,0.000249,7]
[361888932,1747870252505,-151.0,0.000249,7]
[361888933,1747870252515,-151.0,0.000249,7]
[361888934,1747870252524,-686.36074,0.000249,7]
[361888935,1747870252534,-1099.293196,0.000249,2]
[361888936,1747870252544,-686.36074,0.000249,7]
[361888937,1747870252553,-1099.293196,0.000249,2]
[361888938,1747870252562,-153.0554,0.000249,7]
[361888939,1747870252571,-153.0554,0.000249,7]
[361888940,1747870252581,-151.0,0.000249,7]
[361888941,1747870252591,-151.0,0.000249,7]
[361888942,1747870252600,-151.0,0.000249,7]
[361888943,1747870252611,-151.0,0.000249,7]
[361888944,1747870252624,-824.074083,0.000249,7]
[361888945,1747870252634,-824.074083,0.000249,7]
[361888946,1747870252644,-151.0,0.000249,7]
[361888947,1747870252654,-1567.756669,0.000249,7]
[361888948,1747870252663,-1567.756669,0.000249,7]
[361888949,1747870252672,-151.0,0.000249,7]
[361888950,1747870252682,-742764.101211,0.000249,2]
[361888951,1747870252692,-678.38799754,0.000249,15]
[361888952,1747870252702,-494.709629,0.000249,2]
[361888953,1747870252712,-151.0,0.000249,7]
[361888954,1747870252721,-151.0,0.000249,7]
[361888955,1747870252730,-151.0,0.000249,7]
[361888956,1747870252740,-151.0,0.000249,7]
[361888957,1747870252749,-151.0,0.000249,7]
[361888958,1747870252759,-215.021897,0.000249,7]
[361888959,1747870252768,-599.119145,0.000249,7]
[361888960,1747870252778,-151.0,0.000249,7]
[361888961,1747870252787,-151.0,0.000249,7]
[361888962,1747870252797,-599.119145,0.000249,7]
[361888963,1747870252806,-151.0,0.000249,7]
[361888964,1747870252816,-151.0,0.000249,7]
[361888965,1747870252826,-151.0,0.000249,7]
[361888966,1747870252836,-151.0,0.0002493,7]
[361888967,1747870252846,-233.333415,0.0002493,7]
[361888968,1747870252856,-233.333415,0.0002493,7]
[361888969,1747870252866,-471.5,0.0002493,2]
[361888970,1747870252879,-603.85,0.0002493,2]
[361888971,1747870252889,-743.3,0.0002493,2]
[361888972,1747870252898,-1252.1,0.0002493,2]
[361888973,1747870252908,-428.43825347,0.0002493,2]
[361888974,1747870252918,-295.16,0.00024931,2]
[361888975,1747870252928,-778.53,0.00024931,2]
[361888976,1747870252937,-1064.46,0.00024931,2]
[361888977,1747870252948,-1591.44,0.00024931,2]
[361888978,1747870252957,-873.78,0.00024931,2]
[361888979,1747870252967,-430.0,0.00024931,2]